fUST/lending_fUST_20240826
["ID","MTS","AMOUNT","RATE_DAILY","PERIOD"]
[336041065,1724677845970,-500.0,0.00012328,2]
[336041066,1724677845983,-508.04033271,0.00012328,2]
[336041067,1724677845993,-508.0764141,0.00012328,2]
[336041068,1724677846003,-500.0,0.00012328,2]
[336041069,1724677846013,-500.0,0.00012328,2]
[336041070,1724677846023,-500.0,0.00012328,2]
[336041071,1724677846033,-500.0,0.00012328,2]
[336041072,1724677846042,-508.68888417,0.00012328,2]
[336041073,1724677846052,-500.0,0.00012328,2]
[336041074,1724677846062,-500.0,0.00012328,2]
[336041075,1724677846071,-512.19108395,0.00012328,2]
[336041076,1724677846081,-516.68760384,0.00012328,2]
[336041077,1724677846091,-500.0,0.00012328,2]
[336041078,1724677846100,-500.0,0.00012328,2]
[336041080,1724677846111,-500.0,0.00012328,2]
[336041082,1724677846121,-500.0,0.00012328,2]
[336041084,1724677846131,-500.0,0.00012328,2]
[336041086,1724677846140,-691.53,0.00012328,2]
[336041088,1724677846150,-500.0,0.00012328,2]
[336041089,1724677846160,-500.0,0.00012328,2]
[336041092,1724677846170,-509.30452078,0.00012328,2]
[336041093,1724677846179,-500.0,0.00012328,2]
[336041094,1724677846190,-500.0,0.00012328,2]
[336041095,1724677846200,-500.0,0.00012328,2]
[336041096,1724677846209,-773.94,0.00012328,2]
[336041097,1724677846219,-500.0,0.00012328,2]
[336041099,1724677846230,-500.0,0.00012328,2]
[336041101,1724677846240,-549.48,0.00012328,2]
[336041103,1724677846250,-506.39592459,0.00012328,2]
[336041105,1724677846259,-500.0,0.00012328,2]
[336041107,1724677846269,-500.0,0.00012328,2]
[336041109,1724677846279,-600.0,0.00012328,2]
[336041111,1724677846296,-430.62158138,0.00012328,2]
[336041112,1724677846305,-500.0,0.00012328,2]
[336041113,1724677846315,-500.0,0.00012328,2]
[336041114,1724677846325,-500.0,0.00012328,2]
[336041115,1724677846337,-500.0,0.00012328,2]
[336041116,1724677846347,-500.0,0.00012328,2]
[336041117,1724677846356,-500.0,0.00012328,2]
[336041118,1724677846367,-500.0,0.00012328,2]
[336041119,1724677846376,-571.84,0.00012328,2]
[336041120,1724677846386,-500.0,0.00012328,2]
[336041121,1724677846396,-500.0,0.00012328,2]
[336041122,1724677846406,-500.0,0.00012328,2]
[336041123,1724677846416,-500.0,0.00012328,2]
[336041124,1724677846425,-500.0,0.00012328,2]
[336041125,1724677846435,-500.0,0.00012328,2]
[336041126,1724677846445,-504.10350957,0.00012328,2]
[336041127,1724677846454,-207.92078638,0.00012328,2]
[336041128,1724677846464,-500.0,0.00012328,2]
[336041129,1724677846474,-500.0,0.00012328,2]
[336041130,1724677846485,-429.76561624,0.00012328,2]
[336041131,1724677846494,-500.0,0.00012328,2]
[336041132,1724677846504,-500.0,0.00012328,2]
[336041133,1724677846514,-975.45,0.00012328,2]
[336041134,1724677846524,-671.05,0.00012328,2]
[336041135,1724677846534,-575.06,0.00012328,2]
[336041136,1724677846543,-500.0,0.00012328,2]
[336041137,1724677846553,-500.0,0.00012328,2]
[336041138,1724677846749,-601.57,0.00012328,2]
[336041139,1724677846759,-500.0,0.00012328,2]
[336041140,1724677846768,-151.0,0.00012328,2]
[336041141,1724677846778,-956.66,0.00012328,2]
[336041142,1724677846787,-500.0,0.00012328,2]
[336041143,1724677846797,-500.0,0.00012328,2]
[336041144,1724677846807,-500.0,0.00012328,2]
[336041145,1724677846818,-500.0,0.00012328,2]
[336041146,1724677846830,-500.0,0.00012328,2]
[336041147,1724677846841,-500.0,0.00012328,2]
[336041148,1724677846850,-500.0,0.00012328,2]
[336041149,1724677846860,-500.0,0.00012328,2]
[336041150,1724677846869,-500.0,0.00012328,2]
[336041151,1724677846879,-1661.795902,0.00012328,2]
[336041152,1724677846888,-500.0,0.00012328,2]
[336041153,1724677846897,-1661.795902,0.00012328,2]
[336041154,1724677846907,-500.0,0.00012328,2]
[336041155,1724677846916,-151.0,0.00012328,2]
[336041156,1724677846925,-500.0,0.00012328,2]
[336041157,1724677846934,-652.56,0.00012328,2]
[336041158,1724677846943,-500.0,0.00012328,2]
[336041159,1724677846952,-500.0,0.00012328,2]
[336041160,1724677846961,-772.65,0.00012328,2]
[336041161,1724677846970,-500.0,0.00012328,2]
[336041162,1724677846981,-657.413458,0.00012328,2]
[336041163,1724677846990,-500.0,0.00012328,2]
[336041164,1724677847000,-289.472047,0.00012328,2]
[336041165,1724677847009,-657.413458,0.00012328,2]
[336041166,1724677847018,-943.38,0.00012328,2]
[336041167,1724677847027,-500.0,0.00012328,2]
[336041168,1724677847036,-500.0,0.00012328,2]
[336041169,1724677847045,-500.0,0.00012328,2]
[336041170,1724677847054,-221.56838273,0.00012328,2]
[336041171,1724677847063,-500.0,0.00012328,2]
[336041172,1724677847073,-991.04,0.00012328,2]
[336041173,1724677847082,-500.0,0.00012328,2]
[336041174,1724677847091,-614.86926218,0.00012328,2]
[336041175,1724677847101,-500.0,0.00012328,2]
[336041176,1724677847110,-500.0,0.00012328,2]
[336041177,1724677847119,-500.0,0.00012328,2]
[336041178,1724677847128,-650.39,0.00012328,2]
[336041179,1724677847138,-539.070178,0.00012328,2]
[336041180,1724677847147,-539.070178,0.00012328,2]
[336041181,1724677847156,-539.070178,0.00012328,2]
[336041182,1724677847165,-1504.523589,0.00012328,2]
[336041183,1724677847174,-1504.523589,0.00012328,2]
[336041184,1724677847183,-539.070178,0.00012328,2]
[336041185,1724677847192,-694.88,0.00012328,2]
[336041186,1724677847202,-553.98022768,0.00012328,2]
[336041187,1724677847211,-1504.523589,0.00012328,2]
[336041188,1724677847220,-1504.523589,0.00012328,2]
[336041189,1724677847230,-500.0,0.00012328,2]
[336041190,1724677847240,-500.0,0.00012328,2]
[336041191,1724677847250,-500.0,0.00012328,2]
[336041192,1724677847259,-500.0,0.00012328,2]
[336041193,1724677847269,-500.0,0.00012328,2]
[336041194,1724677847278,-500.0,0.00012328,2]
[336041195,1724677847292,-500.0,0.00012328,2]
[336041196,1724677847301,-1059.389236,0.00012328,2]
[336041197,1724677847311,-1059.389236,0.00012328,2]
[336041198,1724677847320,-500.0,0.00012328,2]
[336041199,1724677847331,-151.0,0.00012328,2]
[336041200,1724677847341,-151.0,0.00012328,2]
[336041201,1724677847350,-500.0,0.00012328,2]
[336041202,1724677847359,-1059.389236,0.00012328,2]
[336041203,1724677847369,-1059.389236,0.00012328,2]
[336041204,1724677847379,-934.53,0.00012328,2]
[336041205,1724677847388,-500.0,0.00012328,2]
[336041206,1724677847398,-882.91,0.00012328,2]
[336041207,1724677847407,-2166.514771,0.00012328,2]
[336041208,1724677847417,-2166.514771,0.00012328,2]
[336041209,1724677847426,-500.0,0.00012328,2]
[336041210,1724677847436,-500.0,0.00012328,2]
[336041211,1724677847445,-2166.514771,0.00012328,2]
[336041212,1724677847454,-2166.514771,0.00012328,2]
[336041213,1724677847464,-473.34690368,0.00012328,2]
[336041214,1724677847474,-4505.450302,0.00012328,2]
[336041215,1724677847485,-4505.450302,0.00012328,2]
[336041216,1724677847495,-500.0,0.00012328,2]
[336041217,1724677847504,-500.0,0.00012328,2]
[336041218,1724677847515,-843.21,0.00012328,2]
[336041219,1724677847524,-4505.450302,0.00012328,2]
[336041220,1724677847535,-151.0,0.00012328,2]
[336041221,1724677847545,-4505.450302,0.00012328,2]
[336041222,1724677847556,-151.0,0.00012328,2]
[336041223,1724677847567,-500.0,0.00012328,2]
[336041224,1724677847577,-517.01,0.00012328,2]
[336041225,1724677847586,-500.0,0.00012328,2]
[336041226,1724677847596,-151.0,0.00012328,2]
[336041227,1724677847605,-151.0,0.00012328,2]
[336041228,1724677847615,-819.9,0.00012328,2]
[336041229,1724677847625,-157.75123452,0.00012328,2]
[336041230,1724677847635,-2262.423483,0.00012328,2]
[336041231,1724677847646,-2262.423483,0.00012328,2]
[336041232,1724677847657,-500.0,0.00012328,2]
[336041233,1724677847668,-525.06654566,0.00012328,2]
[336041234,1724677847677,-500.0,0.00012328,2]
[336041235,1724677847686,-500.0,0.00012328,2]
[336041236,1724677847697,-2262.423483,0.00012328,2]
[336041237,1724677847707,-2262.423483,0.00012328,2]
[336041238,1724677847717,-500.0,0.00012328,2]
[336041239,1724677847728,-500.0,0.00012328,2]
[336041240,1724677847737,-500.0,0.00012328,2]
[336041241,1724677847746,-151.0,0.00012328,2]
[336041242,1724677847756,-220.76118149,0.00012328,2]
[336041243,1724677847767,-503.35,0.00012328,2]
[336041244,1724677847777,-2259.303336,0.00012328,2]
[336041245,1724677847786,-2259.303336,0.00012328,2]
[336041246,1724677847796,-500.0,0.00012328,2]
[336041247,1724677847806,-1519.27,0.00012328,2]
[336041248,1724677847815,-2259.303336,0.00012328,2]
[336041249,1724677847825,-2259.303336,0.00012328,2]
[336041250,1724677847834,-500.0,0.00012328,2]
[336041251,1724677847844,-946.72,0.00012328,2]
[336041252,1724677847855,-500.0,0.00012328,2]
[336041253,1724677847865,-500.0,0.00012328,2]
[336041254,1724677847874,-500.0,0.00012328,2]
[336041255,1724677847883,-500.0,0.00012328,2]
[336041256,1724677847892,-1416.86,0.00012328,2]
[336041257,1724677847901,-500.0,0.00012328,2]
[336041258,1724677847911,-500.0,0.00012328,2]
[336041259,1724677847920,-500.0,0.00012328,2]
[336041260,1724677847930,-500.17557677,0.00012328,2]
[336041261,1724677847940,-500.0,0.00012328,2]
[336041262,1724677847949,-500.0,0.00012328,2]
[336041263,1724677847958,-763.23,0.00012328,2]
[336041264,1724677847968,-500.0,0.00012328,2]
[336041265,1724677847977,-500.0,0.00012328,2]
[336041266,1724677847987,-500.90635442,0.00012328,2]
[336041267,1724677847996,-500.0,0.00012328,2]
[336041268,1724677848006,-500.0,0.00012328,2]
[336041269,1724677848016,-1027.46,0.00012328,2]
[336041270,1724677848025,-500.0,0.00012328,2]
[336041271,1724677848034,-2520.188002,0.00012328,2]
[336041272,1724677848044,-2520.188002,0.00012328,2]
[336041273,1724677848054,-2520.188002,0.00012328,2]
[336041274,1724677848065,-220.53781329,0.00012328,2]
[336041275,1724677848075,-500.91035663,0.00012328,2]
[336041276,1724677848086,-500.0,0.00012328,2]
[336041277,1724677848096,-2520.188002,0.00012328,2]
[336041278,1724677848106,-2520.188002,0.00012328,2]
[336041279,1724677848116,-2520.188002,0.00012328,2]
[336041280,1724677848127,-500.0,0.00012328,2]
[336041281,1724677848138,-311.75022078,0.00012328,2]
[336041282,1724677848148,-756.75,0.00012328,2]
[336041283,1724677848159,-500.06725319,0.00012328,2]
[336041284,1724677848168,-204.475249,0.00012328,2]
[336041285,1724677848178,-500.0,0.00012328,2]
[336041286,1724677848187,-204.475249,0.00012328,2]
[336041287,1724677848197,-204.475249,0.00012328,2]
[336041288,1724677848207,-204.475249,0.00012328,2]
[336041289,1724677848219,-204.475249,0.00012328,2]
[336041290,1724677848230,-204.475249,0.00012328,2]
[336041291,1724677848239,-500.0,0.00012328,2]
[336041292,1724677848249,-909.94,0.00012328,2]
[336041293,1724677848259,-811.92,0.00012328,2]
[336041294,1724677848268,-225.379496,0.00012328,2]
[336041295,1724677848277,-635.419131,0.00012328,2]
[336041296,1724677848291,-225.379496,0.00012328,2]
[336041297,1724677848301,-635.419131,0.00012328,2]
[336041298,1724677848310,-635.419131,0.00012328,2]
[336041299,1724677848320,-500.0,0.00012328,2]
[336041300,1724677848330,-225.379496,0.00012328,2]
[336041301,1724677848340,-635.419131,0.00012328,2]
[336041302,1724677848349,-225.379496,0.00012328,2]
[336041303,1724677848360,-635.419131,0.00012328,2]
[336041304,1724677848370,-635.419131,0.00012328,2]
[336041305,1724677848380,-2213.59,0.00012328,2]
[336041306,1724677848390,-500.0,0.00012328,2]
[336041307,1724677848400,-1549.699567,0.00012328,2]
[336041308,1724677848409,-1549.699567,0.00012328,2]
[336041309,1724677848419,-500.0,0.00012328,2]
[336041310,1724677848428,-1549.699567,0.00012328,2]
[336041311,1724677848438,-1549.699567,0.00012328,2]
[336041312,1724677848449,-580.99638008,0.00012328,2]
[336041313,1724677848459,-500.0,0.00012328,2]
[336041314,1724677848469,-1586.645441,0.00012328,2]
[336041315,1724677848479,-1586.645441,0.00012328,2]
[336041316,1724677848489,-1586.645441,0.00012328,2]
[336041317,1724677848498,-1586.645441,0.00012328,2]
[336041318,1724677848507,-500.0,0.00012328,2]
[336041319,1724677848517,-1586.645441,0.00012328,2]
[336041320,1724677848528,-1586.645441,0.00012328,2]
[336041321,1724677848538,-500.0,0.00012328,2]
[336041322,1724677848547,-500.0,0.00012328,2]
[336041323,1724677848558,-500.0,0.00012328,2]
[336041324,1724677848569,-803.74,0.00012328,2]
[336041325,1724677848579,-500.0,0.00012328,2]
[336041326,1724677848589,-262.646992,0.00012328,2]
[336041327,1724677848598,-262.646992,0.00012328,2]
[336041328,1724677848609,-262.646992,0.00012328,2]
[336041329,1724677848620,-500.0,0.00012328,2]
[336041330,1724677848630,-262.646992,0.00012328,2]
[336041331,1724677848641,-262.646992,0.00012328,2]
[336041332,1724677848650,-262.646992,0.00012328,2]
[336041333,1724677848660,-500.0,0.00012328,2]
[336041334,1724677848669,-1334.319411,0.00012328,2]
[336041335,1724677848679,-1334.319411,0.00012328,2]
[336041336,1724677848689,-1334.319411,0.00012328,2]
[336041337,1724677848698,-500.0,0.00012328,2]
[336041338,1724677848708,-1334.319411,0.00012328,2]
[336041339,1724677848717,-1334.319411,0.00012328,2]
[336041340,1724677848727,-1334.319411,0.00012328,2]
[336041341,1724677848736,-500.0,0.00012328,2]
[336041342,1724677848745,-500.0,0.00012328,2]
[336041343,1724677848754,-500.0,0.00012328,2]
[336041344,1724677848764,-500.0,0.00012328,2]
[336041345,1724677848773,-500.0,0.00012328,2]
[336041346,1724677848782,-500.0,0.00012328,2]
[336041347,1724677848791,-296.856014,0.00012328,2]
[336041348,1724677848802,-500.0,0.00012328,2]
[336041349,1724677848811,-500.0,0.00012328,2]
[336041350,1724677848822,-500.0,0.00012328,2]
[336041351,1724677848832,-500.0,0.00012328,2]
[336041352,1724677848842,-500.0,0.00012328,2]
[336041353,1724677848853,-174.492092,0.00012328,2]
[336041354,1724677848863,-174.492092,0.00012328,2]
[336041355,1724677848873,-174.492092,0.00012328,2]
[336041356,1724677848882,-151.0,0.00012328,2]
[336041357,1724677848891,-151.0,0.00012328,2]
[336041358,1724677848902,-151.0,0.00012328,2]
[336041359,1724677848911,-174.492092,0.00012328,2]
[336041360,1724677848922,-174.492092,0.00012328,2]
[336041361,1724677848932,-174.492092,0.00012328,2]
[336041362,1724677848941,-500.0,0.00012329,2]
[336041363,1724677848951,-500.0,0.00012329,2]
[336041364,1724677848961,-500.0,0.00012329,2]
[336041365,1724677848972,-549.48,0.00012329,2]
[336041366,1724677848982,-500.0,0.00012329,2]
[336041367,1724677848992,-500.0,0.00012329,2]
[336041368,1724677849001,-2332.52,0.00012329,2]
[336041369,1724677849011,-500.0,0.00012329,2]
[336041370,1724677849020,-500.0,0.00012329,2]
[336041371,1724677849030,-500.0,0.00012329,2]
[336041372,1724677849039,-2213.59,0.00012329,2]
[336041373,1724677849048,-500.0,0.00012329,2]
[336041374,1724677849057,-1005.88,0.00012329,2]
[336041375,1724677849066,-1005.88,0.00012329,2]
[336041376,1724677849076,-500.0,0.0001233,2]
[336041377,1724677849085,-549.48,0.0001233,2]
[336041378,1724677849095,-549.48,0.0001233,2]
[336041379,1724677849104,-898.892973,0.0001233,2]
[336041380,1724677849114,-151.0,0.0001233,2]
[336041381,1724677849125,-500.0,0.0001233,2]
[336041382,1724677849134,-2332.52,0.0001233,2]
[336041383,1724677849143,-2332.52,0.0001233,2]
[336041384,1724677849154,-500.0,0.0001233,2]
[336041385,1724677849165,-2213.59,0.0001233,2]
[336041386,1724677849175,-2213.59,0.0001233,2]
[336041387,1724677849184,-500.0,0.0001233,2]
[336041388,1724677849193,-1005.88,0.0001233,2]
[336041389,1724677849203,-151.0,0.0001233,2]
[336041390,1724677849212,-500.0,0.00012331,2]
[336041391,1724677849222,-508.18806498,0.00012331,2]
[336041392,1724677849231,-500.0,0.00012331,2]
[336041393,1724677849240,-500.0,0.00012331,2]
[336041394,1724677849250,-500.0,0.00012331,2]
[336041395,1724677849259,-500.0,0.00012331,2]
[336041396,1724677849269,-500.0,0.00012331,2]
[336041397,1724677849279,-500.0,0.00012331,2]
[336041398,1724677849295,-500.88151213,0.00012331,2]
[336041399,1724677849305,-500.0,0.00012331,2]
[336041400,1724677849314,-514.41696992,0.00012331,2]
[336041401,1724677849324,-500.0,0.00012331,2]
[336041402,1724677849334,-500.33429615,0.00012331,2]
[336041403,1724677849344,-500.0,0.00012331,2]
[336041404,1724677849353,-500.0,0.00012331,2]
[336041405,1724677849364,-518.72962149,0.00012331,2]
[336041406,1724677849374,-501.84087692,0.00012331,2]
[336041407,1724677849384,-500.0,0.00012331,2]
[336041408,1724677849394,-500.0,0.00012331,2]
[336041409,1724677849403,-500.0,0.00012331,2]
[336041410,1724677849413,-500.0,0.00012331,2]
[336041411,1724677849423,-500.0,0.00012331,2]
[336041412,1724677849433,-501.4283803,0.00012331,2]
[336041413,1724677849444,-500.0,0.00012331,2]
[336041414,1724677849454,-500.0,0.00012331,2]
[336041415,1724677849464,-500.0,0.00012331,2]
[336041416,1724677849473,-500.0,0.00012331,2]
[336041417,1724677849484,-500.0,0.00012331,2]
[336041418,1724677849493,-500.0,0.00012331,2]
[336041419,1724677849502,-381.11290446,0.00012331,2]
[336041420,1724677849511,-500.0,0.00012331,2]
[336041421,1724677849520,-500.0,0.00012331,2]
[336041422,1724677849531,-606.63,0.00012331,2]
[336041423,1724677849541,-500.0,0.00012331,2]
[336041424,1724677849551,-500.0,0.00012331,2]
[336041425,1724677849561,-151.0,0.00012331,2]
[336041426,1724677849571,-647.98,0.00012331,2]
[336041427,1724677849581,-500.0,0.00012331,2]
[336041428,1724677849590,-549.48,0.00012331,2]
[336041429,1724677849599,-746.35,0.00012331,2]
[336041430,1724677849609,-622.71,0.00012331,2]
[336041431,1724677849618,-958.06,0.00012331,2]
[336041432,1724677849627,-500.42340989,0.00012331,2]
[336041433,1724677849638,-509.33,0.00012331,2]
[336041434,1724677849648,-735.23,0.00012331,2]
[336041435,1724677849659,-844.91,0.00012331,2]
[336041436,1724677849669,-1055.67,0.00012331,2]
[336041437,1724677849828,-813.75,0.00012331,2]
[336041438,1724677849840,-500.0,0.00012331,2]
[336041439,1724677849850,-642.83,0.00012331,2]
[336041440,1724677849859,-151.0,0.00012331,2]
[336041441,1724677849868,-1661.795902,0.00012331,2]
[336041442,1724677849877,-1661.795902,0.00012331,2]
[336041443,1724677849886,-151.0,0.00012331,2]
[336041444,1724677849896,-657.413458,0.00012331,2]
[336041445,1724677849905,-657.413458,0.00012331,2]
[336041446,1724677849915,-539.070178,0.00012331,2]
[336041447,1724677849924,-1504.523589,0.00012331,2]
[336041448,1724677849933,-539.070178,0.00012331,2]
[336041449,1724677849942,-1504.523589,0.00012331,2]
[336041450,1724677849951,-1059.389236,0.00012331,2]
[336041451,1724677849960,-151.0,0.00012331,2]
[336041452,1724677849970,-1059.389236,0.00012331,2]
[336041453,1724677849981,-2166.514771,0.00012331,2]
[336041454,1724677849991,-2166.514771,0.00012331,2]
[336041455,1724677850000,-4505.450302,0.00012331,2]
[336041456,1724677850009,-4505.450302,0.00012331,2]
[336041457,1724677850018,-151.0,0.00012331,2]
[336041458,1724677850028,-213.501141,0.00012331,2]
[336041459,1724677850037,-2262.423483,0.00012331,2]
[336041460,1724677850046,-2262.423483,0.00012331,2]
[336041461,1724677850055,-2259.303336,0.00012331,2]
[336041462,1724677850065,-2259.303336,0.00012331,2]
[336041463,1724677850074,-2520.188002,0.00012331,2]
[336041464,1724677850083,-2520.188002,0.00012331,2]
[336041465,1724677850093,-500.89314511,0.00012331,2]
[336041466,1724677850102,-204.475249,0.00012331,2]
[336041467,1724677850112,-204.475249,0.00012331,2]
[336041468,1724677850121,-225.379496,0.00012331,2]
[336041469,1724677850131,-635.419131,0.00012331,2]
[336041470,1724677850140,-225.379496,0.00012331,2]
[336041471,1724677850150,-635.419131,0.00012331,2]
[336041472,1724677850159,-2213.59,0.00012331,2]
[336041473,1724677850168,-1549.699567,0.00012331,2]
[336041474,1724677850178,-1549.699567,0.00012331,2]
[336041475,1724677850187,-1586.645441,0.00012331,2]
[336041476,1724677850197,-1586.645441,0.00012331,2]
[336041477,1724677850206,-262.646992,0.00012331,2]
[336041478,1724677850216,-262.646992,0.00012331,2]
[336041479,1724677850225,-1334.319411,0.00012331,2]
[336041480,1724677850235,-1334.319411,0.00012331,2]
[336041481,1724677850245,-174.492092,0.00012331,2]
[336041482,1724677850255,-151.0,0.00012331,2]
[336041483,1724677850265,-174.492092,0.00012331,2]
[336041484,1724677850275,-500.0,0.00012338,2]
[336041485,1724677850287,-500.0,0.00012338,2]
[336041486,1724677850297,-549.48,0.00012338,2]
[336041487,1724677850306,-500.0,0.00012338,2]
[336041488,1724677850317,-2332.52,0.00012338,2]
[336041489,1724677850327,-500.0,0.00012338,2]
[336041490,1724677850337,-2213.59,0.00012338,2]
[336041491,1724677850346,-500.0,0.00012338,2]
[336041492,1724677850355,-1005.88,0.00012338,2]
[336041493,1724677850366,-500.0,0.00012339,2]
[336041494,1724677850377,-500.0,0.00012339,2]
[336041495,1724677850387,-500.0,0.00012339,2]
[336041496,1724677850396,-500.0,0.00012339,2]
[336041497,1724677850406,-500.0,0.00012339,2]
[336041498,1724677850415,-500.0,0.00012339,2]
[336041499,1724677850424,-549.48,0.00012339,2]
[336041500,1724677850433,-549.48,0.00012339,2]
[336041501,1724677850443,-549.48,0.00012339,2]
[336041502,1724677850452,-549.48,0.00012339,2]
[336041503,1724677850461,-549.48,0.00012339,2]
[336041504,1724677850471,-898.892973,0.00012339,2]
[336041505,1724677850487,-500.0,0.00012339,2]
[336041506,1724677850496,-500.0,0.00012339,2]
[336041507,1724677850505,-539.070178,0.00012339,2]
[336041508,1724677850515,-1504.523589,0.00012339,2]
[336041509,1724677850524,-539.070178,0.00012339,2]
[336041510,1724677850535,-1504.523589,0.00012339,2]
[336041511,1724677850544,-1059.389236,0.00012339,2]
[336041512,1724677850553,-151.0,0.00012339,2]
[336041513,1724677850562,-1059.389236,0.00012339,2]
[336041514,1724677850572,-2166.514771,0.00012339,2]
[336041515,1724677850581,-2166.514771,0.00012339,2]
[336041516,1724677850590,-4505.450302,0.00012339,2]
[336041517,1724677850600,-4505.450302,0.00012339,2]
[336041518,1724677850610,-151.0,0.00012339,2]
[336041519,1724677850620,-2262.423483,0.00012339,2]
[336041520,1724677850629,-2262.423483,0.00012339,2]
[336041521,1724677850639,-2332.52,0.00012339,2]
[336041522,1724677850648,-2332.52,0.00012339,2]
[336041523,1724677850658,-2259.303336,0.00012339,2]
[336041524,1724677850667,-2259.303336,0.00012339,2]
[336041525,1724677850677,-500.0,0.00012339,2]
[336041526,1724677850686,-500.0,0.00012339,2]
[336041527,1724677850695,-2520.188002,0.00012339,2]
[336041528,1724677850704,-2520.188002,0.00012339,2]
[336041529,1724677850713,-204.475249,0.00012339,2]
[336041530,1724677850723,-204.475249,0.00012339,2]
[336041531,1724677850735,-225.379496,0.00012339,2]
[336041532,1724677850745,-635.419131,0.00012339,2]
[336041533,1724677850755,-225.379496,0.00012339,2]
[336041534,1724677850764,-635.419131,0.00012339,2]
[336041535,1724677850774,-2213.59,0.00012339,2]
[336041536,1724677850783,-2213.59,0.00012339,2]
[336041537,1724677850793,-2213.59,0.00012339,2]
[336041538,1724677850802,-2213.59,0.00012339,2]
[336041539,1724677850811,-2213.59,0.00012339,2]
[336041540,1724677850821,-1549.699567,0.00012339,2]
[336041541,1724677850830,-1549.699567,0.00012339,2]
[336041542,1724677850839,-1586.645441,0.00012339,2]
[336041543,1724677850849,-1586.645441,0.00012339,2]
[336041544,1724677850858,-500.0,0.00012339,2]
[336041545,1724677850868,-262.646992,0.00012339,2]
[336041546,1724677850877,-262.646992,0.00012339,2]
[336041547,1724677850886,-1334.319411,0.00012339,2]
[336041548,1724677850895,-1334.319411,0.00012339,2]
[336041549,1724677850905,-1005.88,0.00012339,2]
[336041550,1724677850914,-1005.88,0.00012339,2]
[336041551,1724677850923,-174.492092,0.00012339,2]
[336041552,1724677850932,-174.492092,0.00012339,2]
[336041553,1724677850941,-151.0,0.0001234,2]
[336041554,1724677850951,-151.0,0.0001234,2]
[336041555,1724677850960,-151.0,0.0001234,2]
[336041556,1724677850969,-666.293601,0.0001234,2]
[336041557,1724677850980,-666.293601,0.0001234,2]
[336041558,1724677850989,-192.38569,0.0001234,2]
[336041559,1724677850997,-303.812604,0.0001234,2]
[336041560,1724677851007,-303.812604,0.0001234,2]
[336041561,1724677851016,-151.0,0.0001234,2]
[336041562,1724677851026,-170.414357,0.0001234,2]
[336041563,1724677851035,-170.414357,0.0001234,2]
[336041564,1724677851044,-262.086838,0.0001234,2]
[336041565,1724677851053,-1347.664072,0.0001234,2]
[336041566,1724677851062,-262.086838,0.0001234,2]
[336041567,1724677851072,-1347.664072,0.0001234,2]
[336041568,1724677851081,-344.307631,0.0001234,2]
[336041569,1724677851090,-988.037663,0.0001234,2]
[336041570,1724677851099,-988.037663,0.0001234,2]
[336041571,1724677851109,-344.307631,0.0001234,2]
[336041572,1724677851118,-241.201416,0.0001234,2]
[336041573,1724677851127,-500.0,0.0001234,2]
[336041574,1724677851137,-500.0,0.0001234,2]
[336041575,1724677851146,-549.48,0.0001234,2]
[336041576,1724677851156,-898.892973,0.0001234,2]
[336041577,1724677851166,-151.0,0.0001234,2]
[336041578,1724677851176,-151.0,0.0001234,2]